Workbook

Sheet Estimate
A1: BID TABULATION | C1: DATE: | D1: 2011-10-18 | E1: Engineer's Estimate (HNTB) | G1: Miles Excavating, Inc. | I1: McAnany Construction | K1: O'Donnell & Sons Const. Co. Inc. | M1: Pyramid Excavation & Construction, Inc. | O1: APAC-Kansas, Inc. Kansas City Division | Q1: Amino Brothers Co., Inc. | S1: J. M. Fahey Construction Company | U1: Average Bid
A2: PROJECT: Quivira Road Widening (99th Street to 105th Street) (TH-0948) | U2: (Does not include Engineer's
A3: OWNER: City of Overland Park, Kansas | U3: Estimate or High Bid)
A4: Item No. | B4: Item | C4: Unit | D4: Quantity | E4: Unit Price | F4: Total | G4: Unit Price | H4: Total | I4: Unit Price | J4: Total | K4: Unit Price | L4: Total | M4: Unit Price | N4: Total | O4: Unit Price | P4: Total | Q4: Unit Price | R4: Total | S4: Unit Price | T4: Total | U4: Unit Price | V4: Total
D5: Total
A6: 1 | B6: Maintenance Bond | C6: Lump Sum | D6: 1 | E6: $30,000 | F6: =IF((ISNUMBER($D6)),$D6*E6,"") -> $30,000.00 | G6: $8,000.00 | H6: =IF((ISNUMBER($D6)),$D6*G6,"") -> $8,000.00 | I6: $68,000.00 | J6: =IF((ISNUMBER($D6)),$D6*I6,"") -> $68,000.00 | K6: $2,500.00 | L6: =IF((ISNUMBER($D6)),$D6*K6,"") -> $2,500.00 | M6: $11,000.00 | N6: =IF((ISNUMBER($D6)),$D6*M6,"") -> $11,000.00 | O6: $37,500.00 | P6: =IF((ISNUMBER($D6)),$D6*O6,"") -> $37,500.00 | Q6: $48,270.00 | R6: =IF((ISNUMBER($D6)),$D6*Q6,"") -> $48,270.00 | S6: $41,000.00 | T6: =IF((ISNUMBER($D6)),$D6*S6,"") -> $41,000.00 | U6: =IF(ISNUMBER($D6),ROUND(AVERAGE(G6,I6,K6,M6,O6,Q6),2),"") -> $29,211.67 | V6: =IF(ISNUMBER($D6),ROUND(U6*D6,2),"") -> $29,211.67
A7: 2 | B7: Contractor Construction Staking | C7: Lump Sum | D7: 1 | E7: $45,000 | F7: =IF((ISNUMBER($D7)),$D7*E7,"") -> $45,000.00 | G7: $25,000.00 | H7: =IF((ISNUMBER($D7)),$D7*G7,"") -> $25,000.00 | I7: $49,875.00 | J7: =IF((ISNUMBER($D7)),$D7*I7,"") -> $49,875.00 | K7: $25,000.00 | L7: =IF((ISNUMBER($D7)),$D7*K7,"") -> $25,000.00 | M7: $40,000.00 | N7: =IF((ISNUMBER($D7)),$D7*M7,"") -> $40,000.00 | O7: $35,000.00 | P7: =IF((ISNUMBER($D7)),$D7*O7,"") -> $35,000.00 | Q7: $12,800.00 | R7: =IF((ISNUMBER($D7)),$D7*Q7,"") -> $12,800.00 | S7: $20,000.00 | T7: =IF((ISNUMBER($D7)),$D7*S7,"") -> $20,000.00 | U7: =IF(ISNUMBER($D7),ROUND(AVERAGE(G7,I7,K7,M7,O7,Q7),2),"") -> $31,279.17 | V7: =IF(ISNUMBER($D7),ROUND(U7*D7,2),"") -> $31,279.17
A8: 3 | B8: Clearing and Grubbing | C8: Lump Sum | D8: 1 | E8: $102,000 | F8: $102,000.00 | G8: $50,000.00 | H8: $50,000.00 | I8: $60,000.00 | J8: $60,000.00 | K8: $82,705.00 | L8: $82,705.00 | M8: $50,000.00 | N8: $50,000.00 | O8: $9,080.00 | P8: $9,080.00 | Q8: $9,900.00 | R8: $9,900.00 | S8: $9,900.00 | T8: $9,900.00 | U8: $43,614.17 | V8: $43,614.17
A9: 4 | B9: Removal of Existing Structures | C9: Lump Sum | D9: 1 | E9: $102,000 | F9: $102,000.00 | G9: $60,000.00 | H9: $60,000.00 | I9: $68,490.24 | J9: $68,490.24 | K9: $395,000.00 | L9: $395,000.00 | M9: $400,000.00 | N9: $400,000.00 | O9: $157,500.00 | P9: $157,500.00 | Q9: $78,125.00 | R9: $78,125.00 | S9: $144,853.35 | T9: $144,853.35 | U9: $193,185.87 | V9: $193,185.87
A10: 5 | B10: Force Account (Set) | C10: Lump Sum | D10: 1 | E10: $200,000 | F10: $200,000.00 | G10: $200,000.00 | H10: $200,000.00 | I10: $200,000.00 | J10: $200,000.00 | K10: $200,000.00 | L10: $200,000.00 | M10: $200,000.00 | N10: $200,000.00 | O10: $200,000.00 | P10: $200,000.00 | Q10: $200,000.00 | R10: $200,000.00 | S10: $200,000.00 | T10: $200,000.00 | U10: $200,000.00 | V10: $200,000.00
A12: 6 | B12: Unclassified Excavation | C12: Cu. Yd. | D12: 25,121 | E12: $20 | F12: $502,420.00 | G12: $17.75 | H12: $445,897.75 | I12: $14.00 | J12: $351,694.00 | K12: $15.50 | L12: $389,375.50 | M12: $10.00 | N12: $251,210.00 | O12: $22.30 | P12: $560,198.30 | Q12: $23.71 | R12: $595,618.91 | S12: $28.50 | T12: $715,948.50 | U12: $17.21 | V12: $432,332.41
A13: 7 | B13: Compaction of Earthwork (All Types) | C13: Cu. Yd. | D13: 287 | E13: $6 | F13: $1,722.00 | G13: $12.55 | H13: $3,601.85 | I13: $13.00 | J13: $3,731.00 | K13: $18.00 | L13: $5,166.00 | M13: $5.00 | N13: $1,435.00 | O13: $5.00 | P13: $1,435.00 | Q13: $3.77 | R13: $1,081.99 | S13: $10.00 | T13: $2,870.00 | U13: $9.55 | V13: $2,740.85
A14: 8 | B14: Excavation (Unsuitable) | C14: Cu. Yd. | D14: 500 | E14: $30 | F14: $15,000.00 | G14: $15.75 | H14: $7,875.00 | I14: $15.00 | J14: $7,500.00 | K14: $25.00 | L14: $12,500.00 | M14: $45.00 | N14: $22,500.00 | O14: $10.00 | P14: $5,000.00 | Q14: $26.72 | R14: $13,360.00 | S14: $25.00 | T14: $12,500.00 | U14: $22.91 | V14: $11,455.00
A15: 9 | B15: Excavation (Unstable) | C15: Cu. Yd. | D15: 500 | E15: $30 | F15: $15,000.00 | G15: $15.75 | H15: $7,875.00 | I15: $15.00 | J15: $7,500.00 | K15: $25.00 | L15: $12,500.00 | M15: $45.00 | N15: $22,500.00 | O15: $10.00 | P15: $5,000.00 | Q15: $26.72 | R15: $13,360.00 | S15: $25.00 | T15: $12,500.00 | U15: $22.91 | V15: $11,455.00
A16: 10 | B16: Topsoil | C16: Cu. Yd. | D16: 2,545 | E16: $10 | F16: $25,450.00 | G16: $13.75 | H16: $34,993.75 | I16: $1.00 | J16: $2,545.00 | K16: $20.00 | L16: $50,900.00 | M16: $24.00 | N16: $61,080.00 | O16: $10.55 | P16: $26,849.75 | Q16: $18.76 | R16: $47,744.20 | S16: $25.00 | T16: $63,625.00 | U16: $14.68 | V16: $37,360.60
A18: 11 | B18: Asphaltic Concrete Surface Course | C18: Ton | D18: 4,642 | E18: $70 | F18: $324,940.00 | G18: $67.50 | H18: $313,335.00 | I18: $62.50 | J18: $290,125.00 | K18: $56.50 | L18: $262,273.00 | M18: $65.00 | N18: $301,730.00 | O18: $72.95 | P18: $338,633.90 | Q18: $65.45 | R18: $303,818.90 | S18: $80.00 | T18: $371,360.00 | U18: $64.98 | V18: $301,637.16
A19: 12 | B19: Asphaltic Concrete Intermediate Course | C19: Ton | D19: 22,623 | E19: $60 | F19: $1,357,380.00 | G19: $67.50 | H19: $1,527,052.50 | I19: $60.35 | J19: $1,365,298.05 | K19: $57.25 | L19: $1,295,166.75 | M19: $62.00 | N19: $1,402,626.00 | O19: $68.20 | P19: $1,542,888.60 | Q19: $66.60 | R19: $1,506,691.80 | S19: $70.00 | T19: $1,583,610.00 | U19: $63.65 | V19: $1,439,953.95
A21: 13 | B21: Temporary Surfacing Material (Commercial Grade Asphaltic Concrete) | C21: Ton | D21: 2,630 | E21: $70 | F21: $184,100.00 | G21: $69.00 | H21: $181,470.00 | I21: $60.00 | J21: $157,800.00 | K21: $58.00 | L21: $152,540.00 | M21: $62.00 | N21: $163,060.00 | O21: $69.90 | P21: $183,837.00 | Q21: $71.80 | R21: $188,834.00 | S21: $68.00 | T21: $178,840.00 | U21: $65.12 | V21: $171,265.60
A22: 14 | B22: Temporary Surfacing Material (Commercial Grade Asphaltic Concrete)(Sidewalk) | C22: Ton | D22: 220 | E22: $80 | F22: $17,600.00 | G22: $105.00 | H22: $23,100.00 | I22: $125.00 | J22: $27,500.00 | K22: $65.00 | L22: $14,300.00 | M22: $125.00 | N22: $27,500.00 | O22: $93.95 | P22: $20,669.00 | Q22: $78.90 | R22: $17,358.00 | S22: $90.00 | T22: $19,800.00 | U22: $98.81 | V22: $21,738.20
A23: 15 | B23: Temporary Surfacing Material (Type AB-3) | C23: Ton | D23: 100 | E23: $20 | F23: $2,000.00 | G23: $18.50 | H23: $1,850.00 | I23: $30.00 | J23: $3,000.00 | K23: $30.00 | L23: $3,000.00 | M23: $25.00 | N23: $2,500.00 | O23: $25.10 | P23: $2,510.00 | Q23: $22.25 | R23: $2,225.00 | S23: $70.00 | T23: $7,000.00 | U23: $25.14 | V23: $2,514.00
A25: 16 | B25: Fly Ash | C25: Ton | D25: 2,319 | E25: $50 | F25: $115,950.00 | G25: $38.00 | H25: $88,122.00 | I25: $40.00 | J25: $92,760.00 | K25: $35.00 | L25: $81,165.00 | M25: $42.00 | N25: $97,398.00 | O25: $38.00 | P25: $88,122.00 | Q25: $65.83 | R25: $152,659.77 | S25: $40.00 | T25: $92,760.00 | U25: $43.14 | V25: $100,041.66
A26: 17 | B26: Manipulation For Fly Ash Treated Subgrade (8") | C26: Sq. Yd. | D26: 41,832 | E26: $3 | F26: $125,496.00 | G26: $3.00 | H26: $125,496.00 | I26: $3.50 | J26: $146,412.00 | K26: $2.00 | L26: $83,664.00 | M26: $2.75 | N26: $115,038.00 | O26: $2.00 | P26: $83,664.00 | Q26: $4.64 | R26: $194,100.48 | S26: $7.00 | T26: $292,824.00 | U26: $2.98 | V26: $124,659.36
A27: 18 | B27: Aggregate Base Course (OP Special) | C27: Sq. Yd. | D27: 1,915 | E27: $10 | F27: $19,150.00 | G27: $8.25 | H27: $15,798.75 | I27: $15.50 | J27: $29,682.50 | K27: $19.50 | L27: $37,342.50 | M27: $8.00 | N27: $15,320.00 | O27: $12.50 | P27: $23,937.50 | Q27: $16.89 | R27: $32,344.35 | S27: $15.00 | T27: $28,725.00 | U27: $13.44 | V27: $25,737.60
A28: 19 | B28: Milling (Total Width Cut) (2") | C28: Sq. Yd. | D28: 992 | E28: $4 | F28: $3,968.00 | G28: $4.50 | H28: $4,464.00 | I28: $4.00 | J28: $3,968.00 | K28: $4.50 | L28: $4,464.00 | M28: $8.00 | N28: $7,936.00 | O28: $6.45 | P28: $6,398.40 | Q28: $7.50 | R28: $7,440.00 | S28: $12.70 | T28: $12,598.40 | U28: $5.83 | V28: $5,783.36
A29: 20 | B29: Street Sweeping | C29: Lump Sum | D29: 1 | E29: $10,000 | F29: $10,000.00 | G29: $4,000.00 | H29: $4,000.00 | I29: $2,000.00 | J29: $2,000.00 | K29: $7,500.00 | L29: $7,500.00 | M29: $1,500.00 | N29: $1,500.00 | O29: $500.00 | P29: $500.00 | Q29: $7,500.00 | R29: $7,500.00 | S29: $1,500.00 | T29: $1,500.00 | U29: $3,833.33 | V29: $3,833.33
A30: 21 | B30: Street Washing | C30: Lane Mile | D30: 5.5 | E30: $400 | F30: $2,200.00 | G30: $1,200.00 | H30: $6,600.00 | I30: $3,650.00 | J30: $20,075.00 | K30: $750.00 | L30: $4,125.00 | M30: $1,200.00 | N30: $6,600.00 | O30: $250.00 | P30: $1,375.00 | Q30: $750.00 | R30: $4,125.00 | S30: $1,000.00 | T30: $5,500.00 | U30: $1,300.00 | V30: $7,150.00
A31: 22 | B31: Pothole Repair | C31: Sq. Ft. | D31: 250.0 | E31: $20 | F31: $5,000.00 | G31: $28.00 | H31: $7,000.00 | I31: $20.00 | J31: $5,000.00 | K31: $10.00 | L31: $2,500.00 | M31: $56.00 | N31: $14,000.00 | O31: $11.00 | P31: $2,750.00 | Q31: $60.85 | R31: $15,212.50 | S31: $30.00 | T31: $7,500.00 | U31: $30.98 | V31: $7,745.00
A32: 23 | B32: Special Cleaning of Milled Surfaces | C32: Lump Sum | D32: 1 | E32: $6,000 | F32: $6,000.00 | G32: $850.00 | H32: $850.00 | I32: $16,800.00 | J32: $16,800.00 | K32: $2,500.00 | L32: $2,500.00 | M32: $1,500.00 | N32: $1,500.00 | O32: $250.00 | P32: $250.00 | Q32: $2,500.00 | R32: $2,500.00 | S32: $1,500.00 | T32: $1,500.00 | U32: $4,066.67 | V32: $4,066.67
A34: 24 | B34: Curb and Gutter, Combined (Type A) | C34: Lin. Ft. | D34: 653 | E34: $25 | F34: $16,325.00 | G34: $18.00 | H34: $11,754.00 | I34: $18.85 | J34: $12,309.05 | K34: $15.00 | L34: $9,795.00 | M34: $15.00 | N34: $9,795.00 | O34: $28.30 | P34: $18,479.90 | Q34: $26.60 | R34: $17,369.80 | S34: $17.00 | T34: $11,101.00 | U34: $20.29 | V34: $13,249.37
A35: 25 | B35: Curb and Gutter, Combined (Type B) | C35: Lin. Ft. | D35: 7,746 | E35: $15 | F35: $116,190.00 | G35: $15.15 | H35: $117,351.90 | I35: $20.50 | J35: $158,793.00 | K35: $18.00 | L35: $139,428.00 | M35: $20.00 | N35: $154,920.00 | O35: $16.90 | P35: $130,907.40 | Q35: $19.12 | R35: $148,103.52 | S35: $16.00 | T35: $123,936.00 | U35: $18.28 | V35: $141,596.88
A36: 26 | B36: Curb and Gutter, Combined (Type C) | C36: Lin. Ft. | D36: 30 | E36: $25 | F36: $750.00 | G36: $15.15 | H36: $454.50 | I36: $20.50 | J36: $615.00 | K36: $17.50 | L36: $525.00 | M36: $35.00 | N36: $1,050.00 | O36: $17.75 | P36: $532.50 | Q36: $30.96 | R36: $928.80 | S36: $20.00 | T36: $600.00 | U36: $22.81 | V36: $684.30
A37: 27 | B37: Curb and Gutter, Combined (Type E) | C37: Lin. Ft. | D37: 6,386 | E37: $20 | F37: $127,720.00 | G37: $15.15 | H37: $96,747.90 | I37: $18.90 | J37: $120,695.40 | K37: $15.50 | L37: $98,983.00 | M37: $18.00 | N37: $114,948.00 | O37: $15.45 | P37: $98,663.70 | Q37: $16.47 | R37: $105,177.42 | S37: $16.00 | T37: $102,176.00 | U37: $16.58 | V37: $105,879.88
A38: 28 | B38: Curb (Type D) | C38: Lin. Ft. | D38: 167 | E38: $10 | F38: $1,670.00 | G38: $11.00 | H38: $1,837.00 | I38: $14.70 | J38: $2,454.90 | K38: $15.50 | L38: $2,588.50 | M38: $45.00 | N38: $7,515.00 | O38: $29.95 | P38: $5,001.65 | Q38: $17.38 | R38: $2,902.46 | S38: $14.00 | T38: $2,338.00 | U38: $22.26 | V38: $3,717.42
A39: 29 | B39: Concrete Median Nose | C39: Each | D39: 12 | E39: $800 | F39: $9,600.00 | G39: $550.00 | H39: $6,600.00 | I39: $782.25 | J39: $9,387.00 | K39: $1,000.00 | L39: $12,000.00 | M39: $900.00 | N39: $10,800.00 | O39: $975.00 | P39: $11,700.00 | Q39: $705.00 | R39: $8,460.00 | S39: $1,575.00 | T39: $18,900.00 | U39: $818.71 | V39: $9,824.52
A40: 30 | B40: Sidewalk Construction (4") | C40: Sq. Ft. | D40: 35,025 | E40: $3 | F40: $105,075.00 | G40: $3.15 | H40: $110,328.75 | I40: $3.15 | J40: $110,328.75 | K40: $4.00 | L40: $140,100.00 | M40: $3.25 | N40: $113,831.25 | O40: $3.25 | P40: $113,831.25 | Q40: $3.27 | R40: $114,531.75 | S40: $3.25 | T40: $113,831.25 | U40: $3.35 | V40: $117,333.75
A41: 31 | B41: Sidewalk Ramp with Detectable Warning Surface | C41: Sq. Ft. | D41: 3,790 | E41: $28 | F41: $106,120.00 | G41: $7.70 | H41: $29,183.00 | I41: $7.77 | J41: $29,448.30 | K41: $7.50 | L41: $28,425.00 | M41: $10.00 | N41: $37,900.00 | O41: $12.90 | P41: $48,891.00 | Q41: $9.57 | R41: $36,270.30 | S41: $7.50 | T41: $28,425.00 | U41: $9.24 | V41: $35,019.60
A42: 32 | B42: Detectable Warning Surface | C42: Sq. Ft. | D42: 565 | E42: $39 | F42: $22,035.00 | G42: $19.75 | H42: $11,158.75 | I42: $57.75 | J42: $32,628.75 | K42: $57.00 | L42: $32,205.00 | M42: $45.00 | N42: $25,425.00 | O42: $38.80 | P42: $21,922.00 | Q42: $44.58 | R42: $25,187.70 | S42: $19.75 | T42: $11,158.75 | U42: $43.81 | V42: $24,752.65
A43: 33 | B43: Concrete Paver Stones | C43: Sq. Ft. | D43: 5,521 | E43: $10 | F43: $55,210.00 | G43: $10.50 | H43: $57,970.50 | I43: $13.55 | J43: $74,809.55 | K43: $12.50 | L43: $69,012.50 | M43: $10.00 | N43: $55,210.00 | O43: $13.60 | P43: $75,085.60 | Q43: $11.26 | R43: $62,166.46 | S43: $11.00 | T43: $60,731.00 | U43: $11.90 | V43: $65,699.90
A44: 34 | B44: Concrete Pavement (6" Entrance) | C44: Sq. Yd. | D44: 109 | E44: $50 | F44: $5,450.00 | G44: $49.75 | H44: $5,422.75 | I44: $47.25 | J44: $5,150.25 | K44: $47.50 | L44: $5,177.50 | M44: $70.00 | N44: $7,630.00 | O44: $61.85 | P44: $6,741.65 | Q44: $69.71 | R44: $7,598.39 | S44: $53.00 | T44: $5,777.00 | U44: $57.68 | V44: $6,287.12
A46: 35 | B46: KCMMB 4K Concrete (ISRW) | C46: Cu. Yd. | D46: 40.2 | E46: $600 | F46: $24,120.00 | G46: $890.00 | H46: $35,778.00 | I46: $761.25 | J46: $30,602.25 | K46: $725.00 | L46: $29,145.00 | M46: $600.00 | N46: $24,120.00 | O46: $820.00 | P46: $32,964.00 | Q46: $721.50 | R46: $29,004.30 | S46: $725.00 | T46: $29,145.00 | U46: $752.96 | V46: $30,268.99
A47: 36 | B47: KCMMB 4K Concrete (Steps) | C47: Cu. Yd. | D47: 0.5 | E47: $2,000 | F47: $1,000.00 | G47: $1,500.00 | H47: $750.00 | I47: $2,100.00 | J47: $1,050.00 | K47: $5,000.00 | L47: $2,500.00 | M47: $1,200.00 | N47: $600.00 | O47: $2,035.00 | P47: $1,017.50 | Q47: $2,000.00 | R47: $1,000.00 | S47: $2,000.00 | T47: $1,000.00 | U47: $2,305.83 | V47: $1,152.92
A48: 37 | B48: Handrail (Metal) (42") | C48: Lin. Ft. | D48: 5.3 | E48: $300 | F48: $1,590.00 | G48: $155.00 | H48: $821.50 | I48: $89.25 | J48: $473.03 | K48: $160.00 | L48: $848.00 | M48: $85.00 | N48: $450.50 | O48: $151.00 | P48: $800.30 | Q48: $150.94 | R48: $799.98 | S48: $151.00 | T48: $800.30 | U48: $131.87 | V48: $698.91
A50: 38 | B50: Manhole (Sanitary) (48"to 60" Dia.) | C50: Each | D50: 3 | E50: $2,000 | F50: $6,000.00 | G50: $3,035.00 | H50: $9,105.00 | I50: $6,825.00 | J50: $20,475.00 | K50: $6,500.00 | L50: $19,500.00 | M50: $7,000.00 | N50: $21,000.00 | O50: $5,750.00 | P50: $17,250.00 | Q50: $6,130.00 | R50: $18,390.00 | S50: $5,400.00 | T50: $16,200.00 | U50: $5,873.33 | V50: $17,619.99
A51: 39 | B51: Sanitary Sewer Encasement | C51: Lin. Ft. | D51: 77.0 | E51: $200 | F51: $15,400.00 | G51: $115.00 | H51: $8,855.00 | I51: $210.00 | J51: $16,170.00 | K51: $110.00 | L51: $8,470.00 | M51: $120.00 | N51: $9,240.00 | O51: $290.00 | P51: $22,330.00 | Q51: $122.90 | R51: $9,463.30 | S51: $70.00 | T51: $5,390.00 | U51: $161.32 | V51: $12,421.64
A52: 40 | B52: Adjustment of Manholes | C52: Each | D52: 11 | E52: $1,500 | F52: $16,500.00 | G52: $850.00 | H52: $9,350.00 | I52: $1,470.00 | J52: $16,170.00 | K52: $1,000.00 | L52: $11,000.00 | M52: $1,500.00 | N52: $16,500.00 | O52: $1,070.00 | P52: $11,770.00 | Q52: $1,145.00 | R52: $12,595.00 | S52: $3,600.00 | T52: $39,600.00 | U52: $1,172.50 | V52: $12,897.50
A54: 41 | B54: Modification of Structure (Curb Inlet to Junction Box) | C54: Each | D54: 15 | E54: $1,200 | F54: $18,000.00 | G54: $1,250.00 | H54: $18,750.00 | I54: $2,940.00 | J54: $44,100.00 | K54: $4,085.00 | L54: $61,275.00 | M54: $1,200.00 | N54: $18,000.00 | O54: $1,225.00 | P54: $18,375.00 | Q54: $1,305.00 | R54: $19,575.00 | S54: $2,800.00 | T54: $42,000.00 | U54: $2,000.83 | V54: $30,012.45
A55: 42 | B55: Adjustment of Curb Inlet | C55: Each | D55: 1 | E55: $1,500 | F55: $1,500.00 | G55: $1,765.00 | H55: $1,765.00 | I55: $2,940.00 | J55: $2,940.00 | K55: $3,600.00 | L55: $3,600.00 | M55: $1,200.00 | N55: $1,200.00 | O55: $1,070.00 | P55: $1,070.00 | Q55: $1,145.00 | R55: $1,145.00 | S55: $2,500.00 | T55: $2,500.00 | U55: $1,953.33 | V55: $1,953.33
A56: 43 | B56: Adjustment of Junction Box | C56: Each | D56: 4 | E56: $1,500 | F56: $6,000.00 | G56: $1,765.00 | H56: $7,060.00 | I56: $1,680.00 | J56: $6,720.00 | K56: $3,600.00 | L56: $14,400.00 | M56: $1,200.00 | N56: $4,800.00 | O56: $1,070.00 | P56: $4,280.00 | Q56: $1,145.00 | R56: $4,580.00 | S56: $3,000.00 | T56: $12,000.00 | U56: $1,743.33 | V56: $6,973.32
A57: 44 | B57: Inlet (5' x 3') (Curb) | C57: Each | D57: 5 | E57: $4,000 | F57: $20,000.00 | G57: $2,805.00 | H57: $14,025.00 | I57: $3,150.00 | J57: $15,750.00 | K57: $3,600.00 | L57: $18,000.00 | M57: $4,000.00 | N57: $20,000.00 | O57: $3,450.00 | P57: $17,250.00 | Q57: $3,680.00 | R57: $18,400.00 | S57: $5,400.00 | T57: $27,000.00 | U57: $3,447.50 | V57: $17,237.50
A58: 45 | B58: Inlet (6' x 3') (Curb) | C58: Each | D58: 1 | E58: $4,200 | F58: $4,200.00 | G58: $3,200.00 | H58: $3,200.00 | I58: $3,465.00 | J58: $3,465.00 | K58: $3,850.00 | L58: $3,850.00 | M58: $6,000.00 | N58: $6,000.00 | O58: $3,400.00 | P58: $3,400.00 | Q58: $3,625.00 | R58: $3,625.00 | S58: $5,500.00 | T58: $5,500.00 | U58: $3,923.33 | V58: $3,923.33
A59: 46 | B59: Inlet (6' x 4') (Curb) | C59: Each | D59: 13 | E59: $4,400 | F59: $57,200.00 | G59: $2,935.00 | H59: $38,155.00 | I59: $3,570.00 | J59: $46,410.00 | K59: $4,535.00 | L59: $58,955.00 | M59: $5,000.00 | N59: $65,000.00 | O59: $3,820.00 | P59: $49,660.00 | Q59: $4,075.00 | R59: $52,975.00 | S59: $5,600.00 | T59: $72,800.00 | U59: $3,989.17 | V59: $51,859.21
A60: 47 | B60: Inlet (6' x 5') (Curb) | C60: Each | D60: 1 | E60: $4,500 | F60: $4,500.00 | G60: $3,375.00 | H60: $3,375.00 | I60: $3,675.00 | J60: $3,675.00 | K60: $4,850.00 | L60: $4,850.00 | M60: $5,400.00 | N60: $5,400.00 | O60: $4,960.00 | P60: $4,960.00 | Q60: $5,290.00 | R60: $5,290.00 | S60: $5,750.00 | T60: $5,750.00 | U60: $4,591.67 | V60: $4,591.67
A61: 48 | B61: Inlet (8' x 4') (Curb) | C61: Each | D61: 3 | E61: $5,000 | F61: $15,000.00 | G61: $3,400.00 | H61: $10,200.00 | I61: $4,200.00 | J61: $12,600.00 | K61: $5,220.00 | L61: $15,660.00 | M61: $5,400.00 | N61: $16,200.00 | O61: $5,480.00 | P61: $16,440.00 | Q61: $4,420.00 | R61: $13,260.00 | S61: $5,800.00 | T61: $17,400.00 | U61: $4,686.67 | V61: $14,060.01
A62: 49 | B62: Inlet (6' x 3') (Curb) (with Flume) | C62: Each | D62: 2 | E62: $5,500 | F62: $11,000.00 | G62: $4,100.00 | H62: $8,200.00 | I62: $3,675.00 | J62: $7,350.00 | K62: $5,200.00 | L62: $10,400.00 | M62: $6,000.00 | N62: $12,000.00 | O62: $7,240.00 | P62: $14,480.00 | Q62: $6,505.00 | R62: $13,010.00 | S62: $5,900.00 | T62: $11,800.00 | U62: $5,453.33 | V62: $10,906.66
A63: 50 | B63: Inlet (6' x 4') (Curb) (with Flume) | C63: Each | D63: 1 | E63: $5,600 | F63: $5,600.00 | G63: $3,785.00 | H63: $3,785.00 | I63: $3,465.00 | J63: $3,465.00 | K63: $4,300.00 | L63: $4,300.00 | M63: $5,500.00 | N63: $5,500.00 | O63: $5,760.00 | P63: $5,760.00 | Q63: $4,930.00 | R63: $4,930.00 | S63: $5,500.00 | T63: $5,500.00 | U63: $4,623.33 | V63: $4,623.33
A64: 51 | B64: Inlet (8' x 3') (Curb) (with Flume) | C64: Each | D64: 1 | E64: $6,000 | F64: $6,000.00 | G64: $3,830.00 | H64: $3,830.00 | I64: $3,885.00 | J64: $3,885.00 | K64: $5,220.00 | L64: $5,220.00 | M64: $6,000.00 | N64: $6,000.00 | O64: $6,915.00 | P64: $6,915.00 | Q64: $6,105.00 | R64: $6,105.00 | S64: $6,100.00 | T64: $6,100.00 | U64: $5,325.83 | V64: $5,325.83
A65: 52 | B65: Inlet (10' x 3') (Curb) (with Flume) | C65: Each | D65: 1 | E65: $6,200 | F65: $6,200.00 | G65: $3,855.00 | H65: $3,855.00 | I65: $4,200.00 | J65: $4,200.00 | K65: $6,100.00 | L65: $6,100.00 | M65: $6,400.00 | N65: $6,400.00 | O65: $6,750.00 | P65: $6,750.00 | Q65: $6,005.00 | R65: $6,005.00 | S65: $6,500.00 | T65: $6,500.00 | U65: $5,551.67 | V65: $5,551.67
A66: 53 | B66: Junction Box (4' x 4') | C66: Each | D66: 2 | E66: $3,500 | F66: $7,000.00 | G66: $2,805.00 | H66: $5,610.00 | I66: $3,045.00 | J66: $6,090.00 | K66: $3,250.00 | L66: $6,500.00 | M66: $3,000.00 | N66: $6,000.00 | O66: $3,550.00 | P66: $7,100.00 | Q66: $3,785.00 | R66: $7,570.00 | S66: $5,300.00 | T66: $10,600.00 | U66: $3,239.17 | V66: $6,478.34
A67: 54 | B67: Junction Box (8' x 4') | C67: Each | D67: 1 | E67: $5,500 | F67: $5,500.00 | G67: $3,165.00 | H67: $3,165.00 | I67: $4,095.00 | J67: $4,095.00 | K67: $4,775.00 | L67: $4,775.00 | M67: $4,000.00 | N67: $4,000.00 | O67: $4,360.00 | P67: $4,360.00 | Q67: $4,655.00 | R67: $4,655.00 | S67: $8,000.00 | T67: $8,000.00 | U67: $4,175.00 | V67: $4,175.00
A68: 55 | B68: 15" Storm Sewer (RCP Class III) | C68: Lin. Ft. | D68: 442.75 | E68: $60 | F68: $26,565.00 | G68: $63.30 | H68: $28,026.08 | I68: $76.65 | J68: $33,936.79 | K68: $65.00 | L68: $28,778.75 | M68: $120.00 | N68: $53,130.00 | O68: $94.35 | P68: $41,773.46 | Q68: $100.60 | R68: $44,540.65 | S68: $91.00 | T68: $40,290.25 | U68: $86.65 | V68: $38,364.29
A69: 56 | B69: 21" Storm Sewer (RCP Class III) | C69: Lin. Ft. | D69: 75.22 | E69: $80 | F69: $6,017.60 | G69: $127.00 | H69: $9,552.94 | I69: $73.50 | J69: $5,528.67 | K69: $75.00 | L69: $5,641.50 | M69: $200.00 | N69: $15,044.00 | O69: $100.00 | P69: $7,522.00 | Q69: $106.70 | R69: $8,025.97 | S69: $106.00 | T69: $7,973.32 | U69: $113.70 | V69: $8,552.51
A70: 57 | B70: 30" Storm Sewer (RCP Class III) | C70: Lin. Ft. | D70: 22.12 | E70: $95 | F70: $2,101.40 | G70: $141.00 | H70: $3,118.92 | I70: $116.55 | J70: $2,578.09 | K70: $120.00 | L70: $2,654.40 | M70: $225.00 | N70: $4,977.00 | O70: $120.60 | P70: $2,667.67 | Q70: $128.60 | R70: $2,844.63 | S70: $142.00 | T70: $3,141.04 | U70: $141.96 | V70: $3,140.16
A71: 58 | B71: 48" Storm Sewer (RCP Class III) | C71: Lin. Ft. | D71: 44.23 | E71: $150 | F71: =IF((ISNUMBER($D71)),$D71*E71,"") -> $6,634.50 | G71: $205.00 | H71: =IF((ISNUMBER($D71)),$D71*G71,"") -> $9,067.15 | I71: $136.50 | J71: =IF((ISNUMBER($D71)),$D71*I71,"") -> $6,037.40 | K71: $300.00 | L71: =IF((ISNUMBER($D71)),$D71*K71,"") -> $13,269.00 | M71: $250.00 | N71: =IF((ISNUMBER($D71)),$D71*M71,"") -> $11,057.50 | O71: $160.50 | P71: =IF((ISNUMBER($D71)),$D71*O71,"") -> $7,098.92 | Q71: $171.15 | R71: =IF((ISNUMBER($D71)),$D71*Q71,"") -> $7,569.96 | S71: $173.00 | T71: =IF((ISNUMBER($D71)),$D71*S71,"") -> $7,651.79 | U71: =IF(ISNUMBER($D71),ROUND(AVERAGE(G71,I71,K71,M71,O71,Q71),2),"") -> $203.86 | V71: =IF(ISNUMBER($D71),ROUND(U71*D71,2),"") -> $9,016.73
A72: 59 | B72: Concrete Pipe Collar | C72: Each | D72: 6 | E72: $800 | F72: $4,800.00 | G72: $525.00 | H72: $3,150.00 | I72: $1,050.00 | J72: $6,300.00 | K72: $1,500.00 | L72: $9,000.00 | M72: $1,000.00 | N72: $6,000.00 | O72: $780.00 | P72: $4,680.00 | Q72: $835.00 | R72: $5,010.00 | S72: $1,116.00 | T72: $6,696.00 | U72: $948.33 | V72: $5,689.98
A73: 60 | B73: Pipe Underdrain (6")(Type H or Type L) | C73: Lin. Ft. | D73: 10,486 | E73: $16 | F73: $167,776.00 | G73: $12.50 | H73: $131,075.00 | I73: $12.60 | J73: $132,123.60 | K73: $11.75 | L73: $123,210.50 | M73: $12.00 | N73: $125,832.00 | O73: $14.80 | P73: $155,192.80 | Q73: $15.80 | R73: $165,678.80 | S73: $16.50 | T73: $173,019.00 | U73: $13.24 | V73: $138,834.64
A74: 61 | B74: Outlet Pipe (6")(Type K or Type E) | C74: Lin. Ft. | D74: 1,649 | E74: $16 | F74: $26,384.00 | G74: $14.50 | H74: $23,910.50 | I74: $12.60 | J74: $20,777.40 | K74: $11.75 | L74: $19,375.75 | M74: $12.00 | N74: $19,788.00 | O74: $14.80 | P74: $24,405.20 | Q74: $15.80 | R74: $26,054.20 | S74: $16.50 | T74: $27,208.50 | U74: $13.58 | V74: $22,393.42
A76: 62 | B76: Lawn Sprinkler System (Tract 27) | C76: Lump Sum | D76: 1 | E76: $3,000 | F76: $3,000.00 | G76: $1,875.00 | H76: $1,875.00 | I76: $3,780.00 | J76: $3,780.00 | K76: $1,825.00 | L76: $1,825.00 | M76: $1,000.00 | N76: $1,000.00 | O76: $1,865.00 | P76: $1,865.00 | Q76: $465.00 | R76: $465.00 | S76: $1,825.00 | T76: $1,825.00 | U76: $1,801.67 | V76: $1,801.67
A77: 63 | B77: Lawn Sprinkler System (Trible) | C77: Lump Sum | D77: 1 | E77: $5,000 | F77: $5,000.00 | G77: $3,450.00 | H77: $3,450.00 | I77: $5,460.00 | J77: $5,460.00 | K77: $3,350.00 | L77: $3,350.00 | M77: $1,500.00 | N77: $1,500.00 | O77: $3,420.00 | P77: $3,420.00 | Q77: $1,072.00 | R77: $1,072.00 | S77: $3,350.00 | T77: $3,350.00 | U77: $3,042.00 | V77: $3,042.00
A78: 64 | B78: Lawn Sprinkler System (Montrachet) | C78: Lump Sum | D78: 1 | E78: $15,000 | F78: $15,000.00 | G78: $11,500.00 | H78: $11,500.00 | I78: $26,250.00 | J78: $26,250.00 | K78: $22,570.00 | L78: $22,570.00 | M78: $15,000.00 | N78: $15,000.00 | O78: $23,030.00 | P78: $23,030.00 | Q78: $11,292.00 | R78: $11,292.00 | S78: $22,570.00 | T78: $22,570.00 | U78: $18,273.67 | V78: $18,273.67
A79: 65 | B79: Lawn Sprinkler System (Median) | C79: Lump Sum | D79: 1 | E79: $27,000 | F79: $27,000.00 | G79: $67,000.00 | H79: $67,000.00 | I79: $65,730.00 | J79: $65,730.00 | K79: $93,060.00 | L79: $93,060.00 | M79: $80,000.00 | N79: $80,000.00 | O79: $94,960.00 | P79: $94,960.00 | Q79: $66,280.00 | R79: $66,280.00 | S79: $93,060.00 | T79: $93,060.00 | U79: $77,838.33 | V79: $77,838.33
A81: 66 | B81: Fence (Temporary Chain Link)(6') | C81: Lin. Ft. | D81: 1,738 | E81: $18 | F81: $31,284.00 | G81: $6.50 | H81: $11,297.00 | I81: $6.30 | J81: $10,949.40 | K81: $6.25 | L81: $10,862.50 | M81: $6.25 | N81: $10,862.50 | O81: $6.25 | P81: $10,862.50 | Q81: $6.25 | R81: $10,862.50 | S81: $6.25 | T81: $10,862.50 | U81: $6.30 | V81: $10,949.40
A82: 67 | B82: Fence (Temporary Construction) | C82: Lin. Ft. | D82: 1,000 | E82: $8 | F82: $8,000.00 | G82: $2.00 | H82: $2,000.00 | I82: $4.20 | J82: $4,200.00 | K82: $1.90 | L82: $1,900.00 | M82: $2.50 | N82: $2,500.00 | O82: $1.90 | P82: $1,900.00 | Q82: $1.90 | R82: $1,900.00 | S82: $1.90 | T82: $1,900.00 | U82: $2.40 | V82: $2,400.00
A83: 68 | B83: Fence (Permanent Wood Privacy) (Tract 5) | C83: Lin. Ft. | D83: 82 | E83: $40 | F83: $3,280.00 | G83: $20.65 | H83: $1,693.30 | I83: $28.90 | J83: $2,369.80 | K83: $20.25 | L83: $1,660.50 | M83: $24.00 | N83: $1,968.00 | O83: $20.15 | P83: $1,652.30 | Q83: $20.12 | R83: $1,649.84 | S83: $21.00 | T83: $1,722.00 | U83: $22.35 | V83: $1,832.70
A84: 69 | B84: Fence (Permanent Wood Privacy) (Tract 6) | C84: Lin. Ft. | D84: 86 | E84: $40 | F84: $3,440.00 | G84: $20.65 | H84: $1,775.90 | I84: $28.88 | J84: $2,483.68 | K84: $20.25 | L84: $1,741.50 | M84: $24.00 | N84: $2,064.00 | O84: $20.15 | P84: $1,732.90 | Q84: $20.12 | R84: $1,730.32 | S84: $21.00 | T84: $1,806.00 | U84: $22.34 | V84: $1,921.24
A85: 70 | B85: Fence (Permanent Wood Privacy) (Tract 7) | C85: Lin. Ft. | D85: 71 | E85: $40 | F85: $2,840.00 | G85: $20.65 | H85: $1,466.15 | I85: $28.88 | J85: $2,050.48 | K85: $20.25 | L85: $1,437.75 | M85: $24.00 | N85: $1,704.00 | O85: $20.15 | P85: $1,430.65 | Q85: $20.12 | R85: $1,428.52 | S85: $21.00 | T85: $1,491.00 | U85: $22.34 | V85: $1,586.14
A86: 71 | B86: Fence (Permanent Wood Privacy) (Tract 8) | C86: Lin. Ft. | D86: 74 | E86: $40 | F86: $2,960.00 | G86: $20.65 | H86: $1,528.10 | I86: $28.88 | J86: $2,137.12 | K86: $20.25 | L86: $1,498.50 | M86: $24.00 | N86: $1,776.00 | O86: $20.15 | P86: $1,491.10 | Q86: $20.12 | R86: $1,488.88 | S86: $21.00 | T86: $1,554.00 | U86: $22.34 | V86: $1,653.16
A87: 72 | B87: Fence (Permanent Wood Privacy) (Tract 12) | C87: Lin. Ft. | D87: 72 | E87: $40 | F87: $2,880.00 | G87: $20.65 | H87: $1,486.80 | I87: $28.88 | J87: $2,079.36 | K87: $20.25 | L87: $1,458.00 | M87: $24.00 | N87: $1,728.00 | O87: $20.15 | P87: $1,450.80 | Q87: $20.12 | R87: $1,448.64 | S87: $21.00 | T87: $1,512.00 | U87: $22.34 | V87: $1,608.48
A88: 73 | B88: Fence (Permanent Wood Privacy) (Tract 13) | C88: Lin. Ft. | D88: 73 | E88: $40 | F88: $2,920.00 | G88: $20.65 | H88: $1,507.45 | I88: $28.88 | J88: $2,108.24 | K88: $20.25 | L88: $1,478.25 | M88: $24.00 | N88: $1,752.00 | O88: $20.15 | P88: $1,470.95 | Q88: $20.12 | R88: $1,468.76 | S88: $21.00 | T88: $1,533.00 | U88: $22.34 | V88: $1,630.82
A89: 74 | B89: Fence (Permanent Wood Privacy) (Tract 14) | C89: Lin. Ft. | D89: 72 | E89: $40 | F89: $2,880.00 | G89: $20.65 | H89: $1,486.80 | I89: $28.88 | J89: $2,079.36 | K89: $20.25 | L89: $1,458.00 | M89: $24.00 | N89: $1,728.00 | O89: $20.15 | P89: $1,450.80 | Q89: $20.12 | R89: $1,448.64 | S89: $21.00 | T89: $1,512.00 | U89: $22.34 | V89: $1,608.48
A90: 75 | B90: Fence (Permanent Wood Privacy) (Tract 15) | C90: Lin. Ft. | D90: 74 | E90: $40 | F90: $2,960.00 | G90: $20.65 | H90: $1,528.10 | I90: $28.88 | J90: $2,137.12 | K90: $20.25 | L90: $1,498.50 | M90: $24.00 | N90: $1,776.00 | O90: $20.15 | P90: $1,491.10 | Q90: $20.12 | R90: $1,488.88 | S90: $21.00 | T90: $1,554.00 | U90: $22.34 | V90: $1,653.16
A91: 76 | B91: Fence (Permanent Wood Privacy) (Tract 16) | C91: Lin. Ft. | D91: 112 | E91: $40 | F91: $4,480.00 | G91: $20.65 | H91: $2,312.80 | I91: $28.88 | J91: $3,234.56 | K91: $20.25 | L91: $2,268.00 | M91: $24.00 | N91: $2,688.00 | O91: $20.15 | P91: $2,256.80 | Q91: $20.12 | R91: $2,253.44 | S91: $21.00 | T91: $2,352.00 | U91: $22.34 | V91: $2,502.08
A92: 77 | B92: Fence (Permanent Wood Privacy) (Tract 20) | C92: Lin. Ft. | D92: 45 | E92: $40 | F92: $1,800.00 | G92: $20.65 | H92: $929.25 | I92: $28.88 | J92: $1,299.60 | K92: $20.25 | L92: $911.25 | M92: $24.00 | N92: $1,080.00 | O92: $20.15 | P92: $906.75 | Q92: $20.12 | R92: $905.40 | S92: $21.00 | T92: $945.00 | U92: $22.34 | V92: $1,005.30
A93: 78 | B93: Fence (Permanent Wood Privacy) (Tract 21) | C93: Lin. Ft. | D93: 157 | E93: $40 | F93: $6,280.00 | G93: $20.65 | H93: $3,242.05 | I93: $28.88 | J93: $4,534.16 | K93: $20.25 | L93: $3,179.25 | M93: $24.00 | N93: $3,768.00 | O93: $20.15 | P93: $3,163.55 | Q93: $20.12 | R93: $3,158.84 | S93: $21.00 | T93: $3,297.00 | U93: $22.34 | V93: $3,507.38
A94: 79 | B94: Fence (Permanent Wood Privacy) (Tract 22) | C94: Lin. Ft. | D94: 110 | E94: $40 | F94: $4,400.00 | G94: $20.65 | H94: $2,271.50 | I94: $28.88 | J94: $3,176.80 | K94: $20.25 | L94: $2,227.50 | M94: $24.00 | N94: $2,640.00 | O94: $20.15 | P94: $2,216.50 | Q94: $20.12 | R94: $2,213.20 | S94: $21.00 | T94: $2,310.00 | U94: $22.34 | V94: $2,457.40
A95: 80 | B95: Fence (Permanent Wood Privacy) (Tract 23) | C95: Lin. Ft. | D95: 81 | E95: $40 | F95: $3,240.00 | G95: $20.65 | H95: $1,672.65 | I95: $28.88 | J95: $2,339.28 | K95: $20.25 | L95: $1,640.25 | M95: $24.00 | N95: $1,944.00 | O95: $20.15 | P95: $1,632.15 | Q95: $20.12 | R95: $1,629.72 | S95: $21.00 | T95: $1,701.00 | U95: $22.34 | V95: $1,809.54
A96: 81 | B96: Fence (Permanent Wood Privacy) (Tract 24) | C96: Lin. Ft. | D96: 75 | E96: $40 | F96: $3,000.00 | G96: $20.65 | H96: $1,548.75 | I96: $28.88 | J96: $2,166.00 | K96: $20.25 | L96: $1,518.75 | M96: $24.00 | N96: $1,800.00 | O96: $20.15 | P96: $1,511.25 | Q96: $20.12 | R96: $1,509.00 | S96: $21.00 | T96: $1,575.00 | U96: $22.34 | V96: $1,675.50
A97: 82 | B97: Fence (Permanent Wood Privacy) (Tract 25) | C97: Lin. Ft. | D97: 76 | E97: $40 | F97: $3,040.00 | G97: $20.65 | H97: $1,569.40 | I97: $28.88 | J97: $2,194.88 | K97: $20.25 | L97: $1,539.00 | M97: $24.00 | N97: $1,824.00 | O97: $20.15 | P97: $1,531.40 | Q97: $20.12 | R97: $1,529.12 | S97: $21.00 | T97: $1,596.00 | U97: $22.34 | V97: $1,697.84
A98: 83 | B98: Fence (Permanent Wood Privacy) (Tract 26) | C98: Lin. Ft. | D98: 85 | E98: $40 | F98: $3,400.00 | G98: $20.65 | H98: $1,755.25 | I98: $28.88 | J98: $2,454.80 | K98: $20.25 | L98: $1,721.25 | M98: $24.00 | N98: $2,040.00 | O98: $20.15 | P98: $1,712.75 | Q98: $20.12 | R98: $1,710.20 | S98: $21.00 | T98: $1,785.00 | U98: $22.34 | V98: $1,898.90
A99: 84 | B99: Fence (Permanent Wood Privacy) (Tract 52) | C99: Lin. Ft. | D99: 73 | E99: $40 | F99: $2,920.00 | G99: $20.65 | H99: $1,507.45 | I99: $28.88 | J99: $2,108.24 | K99: $20.25 | L99: $1,478.25 | M99: $24.00 | N99: $1,752.00 | O99: $20.15 | P99: $1,470.95 | Q99: $20.12 | R99: $1,468.76 | S99: $21.00 | T99: $1,533.00 | U99: $22.34 | V99: $1,630.82
A100: 85 | B100: Fence (Permanent Wood Privacy) (Tract 53) | C100: Lin. Ft. | D100: 157 | E100: $40 | F100: $6,280.00 | G100: $20.65 | H100: $3,242.05 | I100: $28.88 | J100: $4,534.16 | K100: $20.25 | L100: $3,179.25 | M100: $24.00 | N100: $3,768.00 | O100: $20.15 | P100: $3,163.55 | Q100: $20.12 | R100: $3,158.84 | S100: $21.00 | T100: $3,297.00 | U100: $22.34 | V100: $3,507.38
A101: 86 | B101: Fence (Permanent Wood Privacy) (Tract 54) | C101: Lin. Ft. | D101: 71 | E101: $40 | F101: $2,840.00 | G101: $20.65 | H101: $1,466.15 | I101: $28.88 | J101: $2,050.48 | K101: $20.25 | L101: $1,437.75 | M101: $24.00 | N101: $1,704.00 | O101: $20.15 | P101: $1,430.65 | Q101: $20.12 | R101: $1,428.52 | S101: $21.00 | T101: $1,491.00 | U101: $22.34 | V101: $1,586.14
A102: 87 | B102: Fence (Permanent Wood Privacy) (Tract 55) | C102: Lin. Ft. | D102: 75 | E102: $40 | F102: $3,000.00 | G102: $20.65 | H102: $1,548.75 | I102: $28.88 | J102: $2,166.00 | K102: $20.25 | L102: $1,518.75 | M102: $24.00 | N102: $1,800.00 | O102: $20.15 | P102: $1,511.25 | Q102: $20.12 | R102: $1,509.00 | S102: $21.00 | T102: $1,575.00 | U102: $22.34 | V102: $1,675.50
A103: 88 | B103: Fence (Permanent Wood Privacy) (Tract 56) | C103: Lin. Ft. | D103: 105 | E103: $40 | F103: $4,200.00 | G103: $20.65 | H103: $2,168.25 | I103: $28.88 | J103: $3,032.40 | K103: $20.25 | L103: $2,126.25 | M103: $24.00 | N103: $2,520.00 | O103: $20.15 | P103: $2,115.75 | Q103: $20.12 | R103: $2,112.60 | S103: $21.00 | T103: $2,205.00 | U103: $22.34 | V103: $2,345.70
A104: 89 | B104: Fence (Permanent Wood Privacy) (Tract 66) | C104: Lin. Ft. | D104: 52 | E104: $40 | F104: $2,080.00 | G104: $20.65 | H104: $1,073.80 | I104: $28.88 | J104: $1,501.76 | K104: $20.25 | L104: $1,053.00 | M104: $24.00 | N104: $1,248.00 | O104: $20.15 | P104: $1,047.80 | Q104: $20.12 | R104: $1,046.24 | S104: $21.00 | T104: $1,092.00 | U104: $22.34 | V104: $1,161.68
A106: 90 | B106: Monument Construction (Aspen Hills) | C106: Each | D106: 1 | E106: $12,000 | F106: $12,000.00 | G106: $1,175.00 | H106: $1,175.00 | I106: $15,750.00 | J106: $15,750.00 | K106: $12,500.00 | L106: $12,500.00 | M106: $1,500.00 | N106: $1,500.00 | O106: $31,185.00 | P106: $31,185.00 | Q106: $25,325.00 | R106: $25,325.00 | S106: $22,500.00 | T106: $22,500.00 | U106: $14,572.50 | V106: $14,572.50
A107: 91 | B107: Monument Construction (Oak Park) | C107: Each | D107: 1 | E107: $4,000 | F107: $4,000.00 | G107: $3,750.00 | H107: $3,750.00 | I107: $8,400.00 | J107: $8,400.00 | K107: $5,000.00 | L107: $5,000.00 | M107: $4,000.00 | N107: $4,000.00 | O107: $6,325.00 | P107: $6,325.00 | Q107: $7,752.00 | R107: $7,752.00 | S107: $4,000.00 | T107: $4,000.00 | U107: $5,871.17 | V107: $5,871.17
A109: 92 | B109: Landscaping (Quivira Median) | C109: Lump Sum | D109: 1 | E109: $15,000 | F109: $15,000.00 | G109: $16,650.00 | H109: $16,650.00 | I109: $30,450.00 | J109: $30,450.00 | K109: $16,500.00 | L109: $16,500.00 | M109: $20,000.00 | N109: $20,000.00 | O109: $16,540.00 | P109: $16,540.00 | Q109: $18,850.00 | R109: $18,850.00 | S109: $16,500.00 | T109: $16,500.00 | U109: $19,831.67 | V109: $19,831.67
A110: 93 | B110: Fescue Sod | C110: Sq. Yd. | D110: 15,078 | E110: $4 | F110: $60,312.00 | G110: $3.10 | H110: $46,741.80 | I110: $3.20 | J110: $48,249.60 | K110: $4.75 | L110: $71,620.50 | M110: $4.20 | N110: $63,327.60 | O110: $3.50 | P110: $52,773.00 | Q110: $3.05 | R110: $45,987.90 | S110: $3.05 | T110: $45,987.90 | U110: $3.63 | V110: $54,733.14
A111: 94 | B111: Bluegrass Sod | C111: Sq. Yd. | D111: 193 | E111: $4 | F111: $772.00 | G111: $3.10 | H111: $598.30 | I111: $3.20 | J111: $617.60 | K111: $3.70 | L111: $714.10 | M111: $4.00 | N111: $772.00 | O111: $3.50 | P111: $675.50 | Q111: $3.05 | R111: $588.65 | S111: $3.05 | T111: $588.65 | U111: $3.43 | V111: $661.99
A112: 95 | B112: Hydraulic Mulching | C112: Lb | D112: 14,080 | E112: $0.4 | F112: $5,632.00 | G112: $0.75 | H112: $10,560.00 | I112: $0.80 | J112: $11,264.00 | K112: $1.00 | L112: $14,080.00 | M112: $0.50 | N112: $7,040.00 | O112: $0.65 | P112: $9,152.00 | Q112: $0.75 | R112: $10,560.00 | S112: $0.75 | T112: $10,560.00 | U112: $0.74 | V112: $10,419.20
A113: 96 | B113: Temporary Seeding | C113: Acre | D113: 3.2 | E113: $1,800 | F113: $5,760.00 | G113: $1,000.00 | H113: $3,200.00 | I113: $1,050.00 | J113: $3,360.00 | K113: $1,250.00 | L113: $4,000.00 | M113: $1,700.00 | N113: $5,440.00 | O113: $1,885.00 | P113: $6,032.00 | Q113: $1,000.00 | R113: $3,200.00 | S113: $1,000.00 | T113: $3,200.00 | U113: $1,314.17 | V113: $4,205.34
A114: 97 | B114: Silt Fence | C114: Lin. Ft. | D114: 800 | E114: $3 | F114: $2,400.00 | G114: $1.75 | H114: $1,400.00 | I114: $1.60 | J114: $1,280.00 | K114: $2.00 | L114: $1,600.00 | M114: $1.50 | N114: $1,200.00 | O114: $1.40 | P114: $1,120.00 | Q114: $1.05 | R114: $840.00 | S114: $1.05 | T114: $840.00 | U114: $1.55 | V114: $1,240.00
A115: 98 | B115: Sediment Removal | C115: Cu. Yd. | D115: 100 | E115: $50 | F115: $5,000.00 | G115: $25.00 | H115: $2,500.00 | I115: $21.00 | J115: $2,100.00 | K115: $50.00 | L115: $5,000.00 | M115: $30.00 | N115: $3,000.00 | O115: $5.25 | P115: $525.00 | Q115: $34.25 | R115: $3,425.00 | S115: $47.00 | T115: $4,700.00 | U115: $27.58 | V115: $2,758.00
A116: 99 | B116: Rock Barrier (6") | C116: Each | D116: 12 | E116: $400 | F116: $4,800.00 | G116: $250.00 | H116: $3,000.00 | I116: $105.00 | J116: $1,260.00 | K116: $750.00 | L116: $9,000.00 | M116: $35.00 | N116: $420.00 | O116: $330.00 | P116: $3,960.00 | Q116: $301.85 | R116: $3,622.20 | S116: $450.00 | T116: $5,400.00 | U116: $295.31 | V116: $3,543.72
A117: 100 | B117: Straw Wattles | C117: Lin. Ft. | D117: 1,250 | E117: $50 | F117: $62,500.00 | G117: $2.55 | H117: $3,187.50 | I117: $4.20 | J117: $5,250.00 | K117: $3.00 | L117: $3,750.00 | M117: $4.00 | N117: $5,000.00 | O117: $3.85 | P117: $4,812.50 | Q117: $2.25 | R117: $2,812.50 | S117: $2.25 | T117: $2,812.50 | U117: $3.31 | V117: $4,137.50
A118: 101 | B118: Inlet Protection | C118: Each | D118: 100 | E118: $70 | F118: $7,000.00 | G118: $92.00 | H118: $9,200.00 | I118: $76.00 | J118: $7,600.00 | K118: $100.00 | L118: $10,000.00 | M118: $80.00 | N118: $8,000.00 | O118: $40.50 | P118: $4,050.00 | Q118: $47.50 | R118: $4,750.00 | S118: $47.50 | T118: $4,750.00 | U118: $72.67 | V118: $7,267.00
A120: 102 | B120: Permanent Traffic Control Signs | C120: Sq. Ft. | D120: 359 | E120: $20 | F120: $7,180.00 | G120: $17.50 | H120: $6,282.50 | I120: $17.85 | J120: $6,408.15 | K120: $20.00 | L120: $7,180.00 | M120: $21.00 | N120: $7,539.00 | O120: $17.20 | P120: $6,174.80 | Q120: $17.00 | R120: $6,103.00 | S120: $20.00 | T120: $7,180.00 | U120: $18.43 | V120: $6,616.37
A121: 103 | B121: 1-3/4" x 1-3/4" Sign Posts | C121: Lin. Ft. | D121: 357 | E121: $5 | F121: $1,785.00 | G121: $6.15 | H121: $2,195.55 | I121: $6.30 | J121: $2,249.10 | K121: $6.50 | L121: $2,320.50 | M121: $9.00 | N121: $3,213.00 | O121: $6.10 | P121: $2,177.70 | Q121: $6.00 | R121: $2,142.00 | S121: $6.50 | T121: $2,320.50 | U121: $6.68 | V121: $2,384.76
A122: 104 | B122: 2" x 2" Sign Post Anchors | C122: Lin. Ft. | D122: 111 | E122: $6 | F122: $666.00 | G122: $7.20 | H122: $799.20 | I122: $7.35 | J122: $815.85 | K122: $10.00 | L122: $1,110.00 | M122: $11.00 | N122: $1,221.00 | O122: $7.10 | P122: $788.10 | Q122: $7.00 | R122: $777.00 | S122: $10.00 | T122: $1,110.00 | U122: $8.28 | V122: $919.08
A123: 105 | B123: 2-1/4" x 2-1/4" Anchor Sleeves | C123: Lin. Ft. | D123: 56 | E123: $8 | F123: $448.00 | G123: $8.20 | H123: $459.20 | I123: $8.40 | J123: $470.40 | K123: $8.00 | L123: $448.00 | M123: $16.00 | N123: $896.00 | O123: $8.10 | P123: $453.60 | Q123: $8.00 | R123: $448.00 | S123: $8.00 | T123: $448.00 | U123: $9.45 | V123: $529.20
A124: 106 | B124: 2-1/2" x 2-1/2" Sign Posts | C124: Lin. Ft. | D124: 32 | E124: $8 | F124: $256.00 | G124: $10.25 | H124: $328.00 | I124: $10.50 | J124: $336.00 | K124: $10.00 | L124: $320.00 | M124: $21.00 | N124: $672.00 | O124: $10.10 | P124: $323.20 | Q124: $10.00 | R124: $320.00 | S124: $10.00 | T124: $320.00 | U124: $11.98 | V124: $383.36
A125: 107 | B125: 3" x 3" Sign Post Anchors | C125: Lin. Ft. | D125: 9 | E125: $10 | F125: $90.00 | G125: $15.40 | H125: $138.60 | I125: $15.75 | J125: $141.75 | K125: $30.00 | L125: $270.00 | M125: $26.00 | N125: $234.00 | O125: $15.20 | P125: $136.80 | Q125: $15.00 | R125: $135.00 | S125: $30.00 | T125: $270.00 | U125: $19.56 | V125: $176.04
A127: 108 | B127: Interim Pavement Markings | C127: Lump Sum | D127: 1 | E127: $9,000 | F127: $9,000.00 | G127: $2,500.00 | H127: $2,500.00 | I127: $1,050.00 | J127: $1,050.00 | K127: $7,500.00 | L127: $7,500.00 | M127: $5,000.00 | N127: $5,000.00 | O127: $2,960.00 | P127: $2,960.00 | Q127: $5,565.00 | R127: $5,565.00 | S127: $2,000.00 | T127: $2,000.00 | U127: $4,095.83 | V127: $4,095.83
A128: 109 | B128: 4" White Thermoplastic | C128: Lin. Ft. | D128: 5,925 | E128: $1 | F128: $5,925.00 | G128: $0.62 | H128: $3,673.50 | I128: $0.65 | J128: $3,851.25 | K128: $0.75 | L128: $4,443.75 | M128: $0.70 | N128: $4,147.50 | O128: $0.65 | P128: $3,851.25 | Q128: $0.61 | R128: $3,614.25 | S128: $0.75 | T128: $4,443.75 | U128: $0.66 | V128: $3,910.50
A129: 110 | B129: 4" Yellow Thermoplastic | C129: Lin. Ft. | D129: 154 | E129: $1 | F129: $154.00 | G129: $1.55 | H129: $238.70 | I129: $1.60 | J129: $246.40 | K129: $0.75 | L129: $115.50 | M129: $2.10 | N129: $323.40 | O129: $1.55 | P129: $238.70 | Q129: $1.50 | R129: $231.00 | S129: $0.75 | T129: $115.50 | U129: $1.51 | V129: $232.54
A130: 111 | B130: 6" White Thermoplastic | C130: Lin. Ft. | D130: 1,488 | E130: $1 | F130: $1,488.00 | G130: $0.80 | H130: $1,190.40 | I130: $0.85 | J130: $1,264.80 | K130: $1.50 | L130: $2,232.00 | M130: $1.70 | N130: $2,529.60 | O130: $0.80 | P130: $1,190.40 | Q130: $0.78 | R130: $1,160.64 | S130: $1.50 | T130: $2,232.00 | U130: $1.07 | V130: $1,592.16
A131: 112 | B131: 8" While Thermoplastic | C131: Lin. Ft. | D131: 231 | E131: $2 | F131: $462.00 | G131: $0.87 | H131: $200.97 | I131: $0.90 | J131: $207.90 | K131: $2.75 | L131: $635.25 | M131: $3.20 | N131: $739.20 | O131: $0.85 | P131: $196.35 | Q131: $0.85 | R131: $196.35 | S131: $2.75 | T131: $635.25 | U131: $1.57 | V131: $362.67
A132: 113 | B132: 12" White Pre-formed Thermoplastic | C132: Lin. Ft. | D132: 124 | E132: $3 | F132: $372.00 | G132: $2.70 | H132: $334.80 | I132: $2.80 | J132: $347.20 | K132: $5.00 | L132: $620.00 | M132: $8.50 | N132: $1,054.00 | O132: $2.70 | P132: $334.80 | Q132: $2.65 | R132: $328.60 | S132: $5.00 | T132: $620.00 | U132: $4.06 | V132: $503.44
A133: 114 | B133: 24" White Pre-formed Thermoplastic | C133: Lin. Ft. | D133: 323 | E133: $10 | F133: $3,230.00 | G133: $11.30 | H133: $3,649.90 | I133: $11.55 | J133: $3,730.65 | K133: $14.00 | L133: $4,522.00 | M133: $17.00 | N133: $5,491.00 | O133: $11.15 | P133: $3,601.45 | Q133: $11.00 | R133: $3,553.00 | S133: $14.00 | T133: $4,522.00 | U133: $12.67 | V133: $4,092.41
A134: 115 | B134: White Arrows Pre-formed Thermoplastic | C134: Each | D134: 26 | E134: $150 | F134: $3,900.00 | G134: $135.00 | H134: $3,510.00 | I134: $136.50 | J134: $3,549.00 | K134: $170.00 | L134: $4,420.00 | M134: $200.00 | N134: $5,200.00 | O134: $132.00 | P134: $3,432.00 | Q134: $130.00 | R134: $3,380.00 | S134: $170.00 | T134: $4,420.00 | U134: $150.58 | V134: $3,915.08
A135: 116 | B135: White "Only" Markings Pre-formed Thermoplastic | C135: Each | D135: 1 | E135: $150 | F135: =IF((ISNUMBER($D135)),$D135*E135,"") -> $150.00 | G135: $205.00 | H135: =IF((ISNUMBER($D135)),$D135*G135,"") -> $205.00 | I135: $210.00 | J135: =IF((ISNUMBER($D135)),$D135*I135,"") -> $210.00 | K135: $255.00 | L135: =IF((ISNUMBER($D135)),$D135*K135,"") -> $255.00 | M135: $375.00 | N135: =IF((ISNUMBER($D135)),$D135*M135,"") -> $375.00 | O135: $202.00 | P135: =IF((ISNUMBER($D135)),$D135*O135,"") -> $202.00 | Q135: $200.00 | R135: =IF((ISNUMBER($D135)),$D135*Q135,"") -> $200.00 | S135: $255.00 | T135: =IF((ISNUMBER($D135)),$D135*S135,"") -> $255.00 | U135: =IF(ISNUMBER($D135),ROUND(AVERAGE(G135,I135,K135,M135,O135,Q135),2),"") -> $241.17 | V135: =IF(ISNUMBER($D135),ROUND(U135*D135,2),"") -> $241.17
A136: 117 | B136: 8" White Cold Plastic | C136: Lin. Ft. | D136: 234 | E136: $2 | F136: $468.00 | G136: $6.15 | H136: $1,439.10 | I136: $6.30 | J136: $1,474.20 | K136: $5.50 | L136: $1,287.00 | M136: $6.50 | N136: $1,521.00 | O136: $6.10 | P136: $1,427.40 | Q136: $6.00 | R136: $1,404.00 | S136: $5.50 | T136: $1,287.00 | U136: $6.09 | V136: $1,425.06
A137: 118 | B137: White Arrows Cold Plastic | C137: Each | D137: 2 | E137: $150 | F137: $300.00 | G137: $405.00 | H137: $810.00 | I137: $414.75 | J137: $829.50 | K137: $250.00 | L137: $500.00 | M137: $425.00 | N137: $850.00 | O137: $400.00 | P137: $800.00 | Q137: $395.00 | R137: $790.00 | S137: $250.00 | T137: $500.00 | U137: $381.63 | V137: $763.26
A138: 119 | B138: White "Only" Markings Cold Plastic | C138: Each | D138: 1 | E138: $150 | F138: $150.00 | G138: $595.00 | H138: $595.00 | I138: $609.00 | J138: $609.00 | K138: $385.00 | L138: $385.00 | M138: $450.00 | N138: $450.00 | O138: $585.00 | P138: $585.00 | Q138: $580.00 | R138: $580.00 | S138: $385.00 | T138: $385.00 | U138: $534.00 | V138: $534.00
A140: 120 | B140: Street Lighting Installation | C140: Lump Sum | D140: 1 | E140: $220,000 | F140: $220,000.00 | G140: $166,000.00 | H140: $166,000.00 | I140: $164,640.00 | J140: $164,640.00 | K140: $158,000.00 | L140: $158,000.00 | M140: $160,000.00 | N140: $160,000.00 | O140: $158,650.00 | P140: $158,650.00 | Q140: $150,245.00 | R140: $150,245.00 | S140: $156,750.00 | T140: $156,750.00 | U140: $159,589.17 | V140: $159,589.17
A141: 121 | B141: Fiber Optic Communication System | C141: Lump Sum | D141: 1 | E141: $130,000 | F141: $130,000.00 | G141: $51,000.00 | H141: $51,000.00 | I141: $64,701.00 | J141: $64,701.00 | K141: $55,000.00 | L141: $55,000.00 | M141: $60,000.00 | N141: $60,000.00 | O141: $50,840.00 | P141: $50,840.00 | Q141: $59,050.00 | R141: $59,050.00 | S141: $61,610.00 | T141: $61,610.00 | U141: $56,765.17 | V141: $56,765.17
A143: 122 | B143: Traffic Signal Installation (99th) | C143: Lump Sum | D143: 1 | E143: $200,000 | F143: $200,000.00 | G143: $189,000.00 | H143: $189,000.00 | I143: $206,367.00 | J143: $206,367.00 | K143: $195,000.00 | L143: $195,000.00 | M143: $200,000.00 | N143: $200,000.00 | O143: $191,500.00 | P143: $191,500.00 | Q143: $188,385.00 | R143: $188,385.00 | S143: $196,541.00 | T143: $196,541.00 | U143: $195,042.00 | V143: $195,042.00
A144: 123 | B144: Traffic Signal Installation (103rd) | C144: Lump Sum | D144: 1 | E144: $220,000 | F144: $220,000.00 | G144: $255,000.00 | H144: $255,000.00 | I144: $273,084.00 | J144: $273,084.00 | K144: $260,000.00 | L144: $260,000.00 | M144: $260,000.00 | N144: $260,000.00 | O144: $258,600.00 | P144: $258,600.00 | Q144: $249,280.00 | R144: $249,280.00 | S144: $260,075.00 | T144: $260,075.00 | U144: $259,327.33 | V144: $259,327.33
A146: 124 | B146: Land Corner Monument Box | C146: Each | D146: 3 | E146: $1,800 | F146: $5,400.00 | G146: $1,200.00 | H146: $3,600.00 | I146: $2,625.00 | J146: $7,875.00 | K146: $1,250.00 | L146: $3,750.00 | M146: $2,500.00 | N146: $7,500.00 | O146: $600.00 | P146: $1,800.00 | Q146: $1,500.00 | R146: $4,500.00 | S146: $650.00 | T146: $1,950.00 | U146: $1,612.50 | V146: $4,837.50
A147: 125 | B147: Traffic Control | C147: Lump Sum | D147: 1 | E147: $50,886.50 | F147: $50,886.50 | G147: $76,500.00 | H147: $76,500.00 | I147: $204,750.00 | J147: $204,750.00 | K147: $152,350.00 | L147: $152,350.00 | M147: $120,000.00 | N147: $120,000.00 | O147: $94,200.00 | P147: $94,200.00 | Q147: $85,000.00 | R147: $85,000.00 | S147: $95,300.00 | T147: $95,300.00 | U147: $122,133.33 | V147: $122,133.33
A148: 126 | B148: TWorks Sign Assembly | C148: Each | D148: 2 | E148: $500 | F148: $1,000.00 | G148: $615.00 | H148: $1,230.00 | I148: $630.00 | J148: $1,260.00 | K148: $375.00 | L148: $750.00 | M148: $1,000.00 | N148: $2,000.00 | O148: $600.00 | P148: $1,200.00 | Q148: $600.00 | R148: $1,200.00 | S148: $750.00 | T148: $1,500.00 | U148: $636.67 | V148: $1,273.34
E150: =SUM(F6:F148) -> $5,464,000.00 | G150: =SUM(H6:H148) -> $4,997,471.46 | I150: $5,250,000.00 | K150: =SUM(L6:L148) -> $5,344,479.75 | M150: =SUM(N6:N148) -> $5,366,286.05 | O150: =SUM(P6:P148) -> $5,451,819.70 | Q150: =SUM(R6:R148) -> $5,501,826.25 | S150: =SUM(T6:T148) -> $5,998,888.00 | U150: =SUM(V6:V148) -> $5,318,675.76

Sheet Sub Calcs
A1: BID TABULATION | C1: DATE: | D1: 2011-10-18 | E1: Engineer's Estimate (HNTB) | G1: Miles Excavating, Inc.
A2: PROJECT: Quivira Road Widening (99th Street to 105th Street) (TH-0948)
A3: OWNER: City of Overland Park, Kansas
A4: Item No. | B4: Item | C4: Unit | D4: Quantity | E4: Unit Price | F4: Total | G4: Unit Price | H4: Total
D5: Total
A6: 1 | B6: Maintenance Bond | C6: Lump Sum | D6: 1 | E6: $30,000 | F6: =IF((ISNUMBER($D6)),$D6*E6,"") -> $30,000.00 | G6: $8,000.00 | H6: =IF((ISNUMBER($D6)),$D6*G6,"") -> $8,000.00
A7: 2 | B7: Contractor Construction Staking | C7: Lump Sum | D7: 1 | E7: $45,000 | F7: =IF((ISNUMBER($D7)),$D7*E7,"") -> $45,000.00 | G7: $25,000.00 | H7: =IF((ISNUMBER($D7)),$D7*G7,"") -> $25,000.00
A8: 3 | B8: Clearing and Grubbing | C8: Lump Sum | D8: 1 | E8: $102,000 | F8: $102,000.00 | G8: $50,000.00 | H8: $50,000.00
A9: 4 | B9: Removal of Existing Structures | C9: Lump Sum | D9: 1 | E9: $102,000 | F9: $102,000.00 | G9: $60,000.00 | H9: $60,000.00
A10: 5 | B10: Force Account (Set) | C10: Lump Sum | D10: 1 | E10: $200,000 | F10: $200,000.00 | G10: $200,000.00 | H10: $200,000.00
A12: 6 | B12: Unclassified Excavation | C12: Cu. Yd. | D12: 25,121 | E12: $20 | F12: $502,420.00 | G12: $17.75 | H12: $445,897.75
A13: 7 | B13: Compaction of Earthwork (All Types) | C13: Cu. Yd. | D13: 287 | E13: $6 | F13: $1,722.00 | G13: $12.55 | H13: $3,601.85
A14: 8 | B14: Excavation (Unsuitable) | C14: Cu. Yd. | D14: 500 | E14: $30 | F14: $15,000.00 | G14: $15.75 | H14: $7,875.00
A15: 9 | B15: Excavation (Unstable) | C15: Cu. Yd. | D15: 500 | E15: $30 | F15: $15,000.00 | G15: $15.75 | H15: $7,875.00
A16: 10 | B16: Topsoil | C16: Cu. Yd. | D16: 2,545 | E16: $10 | F16: $25,450.00 | G16: $13.75 | H16: $34,993.75
A18: 11 | B18: Asphaltic Concrete Surface Course | C18: Ton | D18: 4,642 | E18: $70 | F18: $324,940.00 | G18: $67.50 | H18: $313,335.00
A19: 12 | B19: Asphaltic Concrete Intermediate Course | C19: Ton | D19: 22,623 | E19: $60 | F19: $1,357,380.00 | G19: $67.50 | H19: $1,527,052.50
A21: 13 | B21: Temporary Surfacing Material (Commercial Grade Asphaltic Concrete) | C21: Ton | D21: 2,630 | E21: $70 | F21: $184,100.00 | G21: $69.00 | H21: $181,470.00
A22: 14 | B22: Temporary Surfacing Material (Commercial Grade Asphaltic Concrete)(Sidewalk) | C22: Ton | D22: 220 | E22: $80 | F22: $17,600.00 | G22: $105.00 | H22: $23,100.00
A23: 15 | B23: Temporary Surfacing Material (Type AB-3) | C23: Ton | D23: 100 | E23: $20 | F23: $2,000.00 | G23: $18.50 | H23: $1,850.00
A25: 16 | B25: Fly Ash | C25: Ton | D25: 2,319 | E25: $50 | F25: $115,950.00 | G25: $38.00 | H25: $88,122.00
A26: 17 | B26: Manipulation For Fly Ash Treated Subgrade (8") | C26: Sq. Yd. | D26: 41,832 | E26: $3 | F26: $125,496.00 | G26: $3.00 | H26: $125,496.00
A27: 18 | B27: Aggregate Base Course (OP Special) | C27: Sq. Yd. | D27: 1,915 | E27: $10 | F27: $19,150.00 | G27: $8.25 | H27: $15,798.75
A28: 19 | B28: Milling (Total Width Cut) (2") | C28: Sq. Yd. | D28: 992 | E28: $4 | F28: $3,968.00 | G28: $4.50 | H28: $4,464.00
A29: 20 | B29: Street Sweeping | C29: Lump Sum | D29: 1 | E29: $10,000 | F29: $10,000.00 | G29: $4,000.00 | H29: $4,000.00
A30: 21 | B30: Street Washing | C30: Lane Mile | D30: 5.5 | E30: $400 | F30: $2,200.00 | G30: $1,200.00 | H30: $6,600.00
A31: 22 | B31: Pothole Repair | C31: Sq. Ft. | D31: 250.0 | E31: $20 | F31: $5,000.00 | G31: $28.00 | H31: $7,000.00
A32: 23 | B32: Special Cleaning of Milled Surfaces | C32: Lump Sum | D32: 1 | E32: $6,000 | F32: $6,000.00 | G32: $850.00 | H32: $850.00
A34: 24 | B34: Curb and Gutter, Combined (Type A) | C34: Lin. Ft. | D34: 653 | E34: $25 | F34: $16,325.00 | G34: $18.00 | H34: $11,754.00
A35: 25 | B35: Curb and Gutter, Combined (Type B) | C35: Lin. Ft. | D35: 7,746 | E35: $15 | F35: $116,190.00 | G35: $15.15 | H35: $117,351.90
A36: 26 | B36: Curb and Gutter, Combined (Type C) | C36: Lin. Ft. | D36: 30 | E36: $25 | F36: $750.00 | G36: $15.15 | H36: $454.50
A37: 27 | B37: Curb and Gutter, Combined (Type E) | C37: Lin. Ft. | D37: 6,386 | E37: $20 | F37: $127,720.00 | G37: $15.15 | H37: $96,747.90
A38: 28 | B38: Curb (Type D) | C38: Lin. Ft. | D38: 167 | E38: $10 | F38: $1,670.00 | G38: $11.00 | H38: $1,837.00
A39: 29 | B39: Concrete Median Nose | C39: Each | D39: 12 | E39: $800 | F39: $9,600.00 | G39: $550.00 | H39: $6,600.00
A40: 30 | B40: Sidewalk Construction (4") | C40: Sq. Ft. | D40: 35,025 | E40: $3 | F40: $105,075.00 | G40: $3.15 | H40: $110,328.75
A41: 31 | B41: Sidewalk Ramp with Detectable Warning Surface | C41: Sq. Ft. | D41: 3,790 | E41: $28 | F41: $106,120.00 | G41: $7.70 | H41: $29,183.00
A42: 32 | B42: Detectable Warning Surface | C42: Sq. Ft. | D42: 565 | E42: $39 | F42: $22,035.00 | G42: $19.75 | H42: $11,158.75
A43: 33 | B43: Concrete Paver Stones | C43: Sq. Ft. | D43: 5,521 | E43: $10 | F43: $55,210.00 | G43: $10.50 | H43: $57,970.50
A44: 34 | B44: Concrete Pavement (6" Entrance) | C44: Sq. Yd. | D44: 109 | E44: $50 | F44: $5,450.00 | G44: $49.75 | H44: $5,422.75 | I44: =SUM(H39:H44) -> $220,663.75 | J44: =I44+H9 -> $280,663.75
A46: 35 | B46: KCMMB 4K Concrete (ISRW) | C46: Cu. Yd. | D46: 40.2 | E46: $600 | F46: $24,120.00 | G46: $890.00 | H46: $35,778.00
A47: 36 | B47: KCMMB 4K Concrete (Steps) | C47: Cu. Yd. | D47: 0.5 | E47: $2,000 | F47: $1,000.00 | G47: $1,500.00 | H47: $750.00
A48: 37 | B48: Handrail (Metal) (42") | C48: Lin. Ft. | D48: 5.3 | E48: $300 | F48: $1,590.00 | G48: $155.00 | H48: $821.50
A50: 38 | B50: Manhole (Sanitary) (48"to 60" Dia.) | C50: Each | D50: 3 | E50: $2,000 | F50: $6,000.00 | G50: $3,035.00 | H50: $9,105.00
A51: 39 | B51: Sanitary Sewer Encasement | C51: Lin. Ft. | D51: 77.0 | E51: $200 | F51: $15,400.00 | G51: $115.00 | H51: $8,855.00
A52: 40 | B52: Adjustment of Manholes | C52: Each | D52: 11 | E52: $1,500 | F52: $16,500.00 | G52: $850.00 | H52: $9,350.00
A54: 41 | B54: Modification of Structure (Curb Inlet to Junction Box) | C54: Each | D54: 15 | E54: $1,200 | F54: $18,000.00 | G54: $1,250.00 | H54: $18,750.00
A55: 42 | B55: Adjustment of Curb Inlet | C55: Each | D55: 1 | E55: $1,500 | F55: $1,500.00 | G55: $1,765.00 | H55: $1,765.00
A56: 43 | B56: Adjustment of Junction Box | C56: Each | D56: 4 | E56: $1,500 | F56: $6,000.00 | G56: $1,765.00 | H56: $7,060.00
A57: 44 | B57: Inlet (5' x 3') (Curb) | C57: Each | D57: 5 | E57: $4,000 | F57: $20,000.00 | G57: $2,805.00 | H57: $14,025.00
A58: 45 | B58: Inlet (6' x 3') (Curb) | C58: Each | D58: 1 | E58: $4,200 | F58: $4,200.00 | G58: $3,200.00 | H58: $3,200.00
A59: 46 | B59: Inlet (6' x 4') (Curb) | C59: Each | D59: 13 | E59: $4,400 | F59: $57,200.00 | G59: $2,935.00 | H59: $38,155.00
A60: 47 | B60: Inlet (6' x 5') (Curb) | C60: Each | D60: 1 | E60: $4,500 | F60: $4,500.00 | G60: $3,375.00 | H60: $3,375.00
A61: 48 | B61: Inlet (8' x 4') (Curb) | C61: Each | D61: 3 | E61: $5,000 | F61: $15,000.00 | G61: $3,400.00 | H61: $10,200.00
A62: 49 | B62: Inlet (6' x 3') (Curb) (with Flume) | C62: Each | D62: 2 | E62: $5,500 | F62: $11,000.00 | G62: $4,100.00 | H62: $8,200.00
A63: 50 | B63: Inlet (6' x 4') (Curb) (with Flume) | C63: Each | D63: 1 | E63: $5,600 | F63: $5,600.00 | G63: $3,785.00 | H63: $3,785.00
A64: 51 | B64: Inlet (8' x 3') (Curb) (with Flume) | C64: Each | D64: 1 | E64: $6,000 | F64: $6,000.00 | G64: $3,830.00 | H64: $3,830.00
A65: 52 | B65: Inlet (10' x 3') (Curb) (with Flume) | C65: Each | D65: 1 | E65: $6,200 | F65: $6,200.00 | G65: $3,855.00 | H65: $3,855.00
A66: 53 | B66: Junction Box (4' x 4') | C66: Each | D66: 2 | E66: $3,500 | F66: $7,000.00 | G66: $2,805.00 | H66: $5,610.00
A67: 54 | B67: Junction Box (8' x 4') | C67: Each | D67: 1 | E67: $5,500 | F67: $5,500.00 | G67: $3,165.00 | H67: $3,165.00
A68: 55 | B68: 15" Storm Sewer (RCP Class III) | C68: Lin. Ft. | D68: 442.75 | E68: $60 | F68: $26,565.00 | G68: $63.30 | H68: $28,026.08
A69: 56 | B69: 21" Storm Sewer (RCP Class III) | C69: Lin. Ft. | D69: 75.22 | E69: $80 | F69: $6,017.60 | G69: $127.00 | H69: $9,552.94
A70: 57 | B70: 30" Storm Sewer (RCP Class III) | C70: Lin. Ft. | D70: 22.12 | E70: $95 | F70: $2,101.40 | G70: $141.00 | H70: $3,118.92
A71: 58 | B71: 48" Storm Sewer (RCP Class III) | C71: Lin. Ft. | D71: 44.23 | E71: $150 | F71: =IF((ISNUMBER($D71)),$D71*E71,"") -> $6,634.50 | G71: $205.00 | H71: =IF((ISNUMBER($D71)),$D71*G71,"") -> $9,067.15
A72: 59 | B72: Concrete Pipe Collar | C72: Each | D72: 6 | E72: $800 | F72: $4,800.00 | G72: $525.00 | H72: $3,150.00
A73: 60 | B73: Pipe Underdrain (6")(Type H or Type L) | C73: Lin. Ft. | D73: 10,486 | E73: $16 | F73: $167,776.00 | G73: $12.50 | H73: $131,075.00
A74: 61 | B74: Outlet Pipe (6")(Type K or Type E) | C74: Lin. Ft. | D74: 1,649 | E74: $16 | F74: $26,384.00 | G74: $14.50 | H74: $23,910.50
A76: 62 | B76: Lawn Sprinkler System (Tract 27) | C76: Lump Sum | D76: 1 | E76: $3,000 | F76: $3,000.00 | G76: $1,875.00 | H76: $1,875.00
A77: 63 | B77: Lawn Sprinkler System (Trible) | C77: Lump Sum | D77: 1 | E77: $5,000 | F77: $5,000.00 | G77: $3,450.00 | H77: $3,450.00
A78: 64 | B78: Lawn Sprinkler System (Montrachet) | C78: Lump Sum | D78: 1 | E78: $15,000 | F78: $15,000.00 | G78: $11,500.00 | H78: $11,500.00
A79: 65 | B79: Lawn Sprinkler System (Median) | C79: Lump Sum | D79: 1 | E79: $27,000 | F79: $27,000.00 | G79: $67,000.00 | H79: $67,000.00 | I79: =SUM(H76:H79) -> $83,825.00
A81: 66 | B81: Fence (Temporary Chain Link)(6') | C81: Lin. Ft. | D81: 1,738 | E81: $18 | F81: $31,284.00 | G81: $6.50 | H81: $11,297.00
A82: 67 | B82: Fence (Temporary Construction) | C82: Lin. Ft. | D82: 1,000 | E82: $8 | F82: $8,000.00 | G82: $2.00 | H82: $2,000.00
A83: 68 | B83: Fence (Permanent Wood Privacy) (Tract 5) | C83: Lin. Ft. | D83: 82 | E83: $40 | F83: $3,280.00 | G83: $20.65 | H83: $1,693.30
A84: 69 | B84: Fence (Permanent Wood Privacy) (Tract 6) | C84: Lin. Ft. | D84: 86 | E84: $40 | F84: $3,440.00 | G84: $20.65 | H84: $1,775.90
A85: 70 | B85: Fence (Permanent Wood Privacy) (Tract 7) | C85: Lin. Ft. | D85: 71 | E85: $40 | F85: $2,840.00 | G85: $20.65 | H85: $1,466.15
A86: 71 | B86: Fence (Permanent Wood Privacy) (Tract 8) | C86: Lin. Ft. | D86: 74 | E86: $40 | F86: $2,960.00 | G86: $20.65 | H86: $1,528.10
A87: 72 | B87: Fence (Permanent Wood Privacy) (Tract 12) | C87: Lin. Ft. | D87: 72 | E87: $40 | F87: $2,880.00 | G87: $20.65 | H87: $1,486.80
A88: 73 | B88: Fence (Permanent Wood Privacy) (Tract 13) | C88: Lin. Ft. | D88: 73 | E88: $40 | F88: $2,920.00 | G88: $20.65 | H88: $1,507.45
A89: 74 | B89: Fence (Permanent Wood Privacy) (Tract 14) | C89: Lin. Ft. | D89: 72 | E89: $40 | F89: $2,880.00 | G89: $20.65 | H89: $1,486.80
A90: 75 | B90: Fence (Permanent Wood Privacy) (Tract 15) | C90: Lin. Ft. | D90: 74 | E90: $40 | F90: $2,960.00 | G90: $20.65 | H90: $1,528.10
A91: 76 | B91: Fence (Permanent Wood Privacy) (Tract 16) | C91: Lin. Ft. | D91: 112 | E91: $40 | F91: $4,480.00 | G91: $20.65 | H91: $2,312.80
A92: 77 | B92: Fence (Permanent Wood Privacy) (Tract 20) | C92: Lin. Ft. | D92: 45 | E92: $40 | F92: $1,800.00 | G92: $20.65 | H92: $929.25
A93: 78 | B93: Fence (Permanent Wood Privacy) (Tract 21) | C93: Lin. Ft. | D93: 157 | E93: $40 | F93: $6,280.00 | G93: $20.65 | H93: $3,242.05
A94: 79 | B94: Fence (Permanent Wood Privacy) (Tract 22) | C94: Lin. Ft. | D94: 110 | E94: $40 | F94: $4,400.00 | G94: $20.65 | H94: $2,271.50
A95: 80 | B95: Fence (Permanent Wood Privacy) (Tract 23) | C95: Lin. Ft. | D95: 81 | E95: $40 | F95: $3,240.00 | G95: $20.65 | H95: $1,672.65
A96: 81 | B96: Fence (Permanent Wood Privacy) (Tract 24) | C96: Lin. Ft. | D96: 75 | E96: $40 | F96: $3,000.00 | G96: $20.65 | H96: $1,548.75
A97: 82 | B97: Fence (Permanent Wood Privacy) (Tract 25) | C97: Lin. Ft. | D97: 76 | E97: $40 | F97: $3,040.00 | G97: $20.65 | H97: $1,569.40
A98: 83 | B98: Fence (Permanent Wood Privacy) (Tract 26) | C98: Lin. Ft. | D98: 85 | E98: $40 | F98: $3,400.00 | G98: $20.65 | H98: $1,755.25
A99: 84 | B99: Fence (Permanent Wood Privacy) (Tract 52) | C99: Lin. Ft. | D99: 73 | E99: $40 | F99: $2,920.00 | G99: $20.65 | H99: $1,507.45
A100: 85 | B100: Fence (Permanent Wood Privacy) (Tract 53) | C100: Lin. Ft. | D100: 157 | E100: $40 | F100: $6,280.00 | G100: $20.65 | H100: $3,242.05
A101: 86 | B101: Fence (Permanent Wood Privacy) (Tract 54) | C101: Lin. Ft. | D101: 71 | E101: $40 | F101: $2,840.00 | G101: $20.65 | H101: $1,466.15
A102: 87 | B102: Fence (Permanent Wood Privacy) (Tract 55) | C102: Lin. Ft. | D102: 75 | E102: $40 | F102: $3,000.00 | G102: $20.65 | H102: $1,548.75
A103: 88 | B103: Fence (Permanent Wood Privacy) (Tract 56) | C103: Lin. Ft. | D103: 105 | E103: $40 | F103: $4,200.00 | G103: $20.65 | H103: $2,168.25
A104: 89 | B104: Fence (Permanent Wood Privacy) (Tract 66) | C104: Lin. Ft. | D104: 52 | E104: $40 | F104: $2,080.00 | G104: $20.65 | H104: $1,073.80 | I104: =SUM(H83:H104) -> $38,780.70 | J104: =I104+H48+H81 -> $50,899.20
A106: 90 | B106: Monument Construction (Aspen Hills) | C106: Each | D106: 1 | E106: $12,000 | F106: $12,000.00 | G106: $1,175.00 | H106: $1,175.00
A107: 91 | B107: Monument Construction (Oak Park) | C107: Each | D107: 1 | E107: $4,000 | F107: $4,000.00 | G107: $3,750.00 | H107: $3,750.00
A109: 92 | B109: Landscaping (Quivira Median) | C109: Lump Sum | D109: 1 | E109: $15,000 | F109: $15,000.00 | G109: $16,650.00 | H109: $16,650.00 | I109: =SUM(H106:H109) -> $21,575.00 | J109: =I109+I79 -> $105,400.00
A110: 93 | B110: Fescue Sod | C110: Sq. Yd. | D110: 15,078 | E110: $4 | F110: $60,312.00 | G110: $3.10 | H110: $46,741.80
A111: 94 | B111: Bluegrass Sod | C111: Sq. Yd. | D111: 193 | E111: $4 | F111: $772.00 | G111: $3.10 | H111: $598.30 | I111: =H110+H111 -> $47,340.10
A112: 95 | B112: Hydraulic Mulching | C112: Lb | D112: 14,080 | E112: $0.4 | F112: $5,632.00 | G112: $0.75 | H112: $10,560.00
A113: 96 | B113: Temporary Seeding | C113: Acre | D113: 3.2 | E113: $1,800 | F113: $5,760.00 | G113: $1,000.00 | H113: $3,200.00
A114: 97 | B114: Silt Fence | C114: Lin. Ft. | D114: 800 | E114: $3 | F114: $2,400.00 | G114: $1.75 | H114: $1,400.00
A115: 98 | B115: Sediment Removal | C115: Cu. Yd. | D115: 100 | E115: $50 | F115: $5,000.00 | G115: $25.00 | H115: $2,500.00
A116: 99 | B116: Rock Barrier (6") | C116: Each | D116: 12 | E116: $400 | F116: $4,800.00 | G116: $250.00 | H116: $3,000.00
A117: 100 | B117: Straw Wattles | C117: Lin. Ft. | D117: 1,250 | E117: $50 | F117: $62,500.00 | G117: $2.55 | H117: $3,187.50
A118: 101 | B118: Inlet Protection | C118: Each | D118: 100 | E118: $70 | F118: $7,000.00 | G118: $92.00 | H118: $9,200.00 | I118: =SUM(H112:H114)+H117+H118 -> $27,547.50
A120: 102 | B120: Permanent Traffic Control Signs | C120: Sq. Ft. | D120: 359 | E120: $20 | F120: $7,180.00 | G120: $17.50 | H120: $6,282.50
A121: 103 | B121: 1-3/4" x 1-3/4" Sign Posts | C121: Lin. Ft. | D121: 357 | E121: $5 | F121: $1,785.00 | G121: $6.15 | H121: $2,195.55
A122: 104 | B122: 2" x 2" Sign Post Anchors | C122: Lin. Ft. | D122: 111 | E122: $6 | F122: $666.00 | G122: $7.20 | H122: $799.20
A123: 105 | B123: 2-1/4" x 2-1/4" Anchor Sleeves | C123: Lin. Ft. | D123: 56 | E123: $8 | F123: $448.00 | G123: $8.20 | H123: $459.20
A124: 106 | B124: 2-1/2" x 2-1/2" Sign Posts | C124: Lin. Ft. | D124: 32 | E124: $8 | F124: $256.00 | G124: $10.25 | H124: $328.00
A125: 107 | B125: 3" x 3" Sign Post Anchors | C125: Lin. Ft. | D125: 9 | E125: $10 | F125: $90.00 | G125: $15.40 | H125: $138.60
A127: 108 | B127: Interim Pavement Markings | C127: Lump Sum | D127: 1 | E127: $9,000 | F127: $9,000.00 | G127: $2,500.00 | H127: $2,500.00
A128: 109 | B128: 4" White Thermoplastic | C128: Lin. Ft. | D128: 5,925 | E128: $1 | F128: $5,925.00 | G128: $0.62 | H128: $3,673.50
A129: 110 | B129: 4" Yellow Thermoplastic | C129: Lin. Ft. | D129: 154 | E129: $1 | F129: $154.00 | G129: $1.55 | H129: $238.70
A130: 111 | B130: 6" White Thermoplastic | C130: Lin. Ft. | D130: 1,488 | E130: $1 | F130: $1,488.00 | G130: $0.80 | H130: $1,190.40
A131: 112 | B131: 8" While Thermoplastic | C131: Lin. Ft. | D131: 231 | E131: $2 | F131: $462.00 | G131: $0.87 | H131: $200.97
A132: 113 | B132: 12" White Pre-formed Thermoplastic | C132: Lin. Ft. | D132: 124 | E132: $3 | F132: $372.00 | G132: $2.70 | H132: $334.80
A133: 114 | B133: 24" White Pre-formed Thermoplastic | C133: Lin. Ft. | D133: 323 | E133: $10 | F133: $3,230.00 | G133: $11.30 | H133: $3,649.90
A134: 115 | B134: White Arrows Pre-formed Thermoplastic | C134: Each | D134: 26 | E134: $150 | F134: $3,900.00 | G134: $135.00 | H134: $3,510.00
A135: 116 | B135: White "Only" Markings Pre-formed Thermoplastic | C135: Each | D135: 1 | E135: $150 | F135: =IF((ISNUMBER($D135)),$D135*E135,"") -> $150.00 | G135: $205.00 | H135: =IF((ISNUMBER($D135)),$D135*G135,"") -> $205.00
A136: 117 | B136: 8" White Cold Plastic | C136: Lin. Ft. | D136: 234 | E136: $2 | F136: $468.00 | G136: $6.15 | H136: $1,439.10
A137: 118 | B137: White Arrows Cold Plastic | C137: Each | D137: 2 | E137: $150 | F137: $300.00 | G137: $405.00 | H137: $810.00
A138: 119 | B138: White "Only" Markings Cold Plastic | C138: Each | D138: 1 | E138: $150 | F138: $150.00 | G138: $595.00 | H138: $595.00 | I138: =SUM(H120:H138) -> $28,550.42
A140: 120 | B140: Street Lighting Installation | C140: Lump Sum | D140: 1 | E140: $220,000 | F140: $220,000.00 | G140: $166,000.00 | H140: $166,000.00
A141: 121 | B141: Fiber Optic Communication System | C141: Lump Sum | D141: 1 | E141: $130,000 | F141: $130,000.00 | G141: $51,000.00 | H141: $51,000.00
A143: 122 | B143: Traffic Signal Installation (99th) | C143: Lump Sum | D143: 1 | E143: $200,000 | F143: $200,000.00 | G143: $189,000.00 | H143: $189,000.00
A144: 123 | B144: Traffic Signal Installation (103rd) | C144: Lump Sum | D144: 1 | E144: $220,000 | F144: $220,000.00 | G144: $255,000.00 | H144: $255,000.00 | I144: =SUM(H140:H144) -> $661,000.00
A146: 124 | B146: Land Corner Monument Box | C146: Each | D146: 3 | E146: $1,800 | F146: $5,400.00 | G146: $1,200.00 | H146: $3,600.00
A147: 125 | B147: Traffic Control | C147: Lump Sum | D147: 1 | E147: $50,886.50 | F147: $50,886.50 | G147: $76,500.00 | H147: $76,500.00
A148: 126 | B148: TWorks Sign Assembly | C148: Each | D148: 2 | E148: $500 | F148: $1,000.00 | G148: $615.00 | H148: $1,230.00 | I148: =SUM(H147:H148) -> $77,730.00 | J148: =I138+I148 -> $106,280.42
E150: =SUM(F6:F148) -> $5,464,000.00 | G150: =SUM(H6:H148) -> $4,997,471.46
